bitfinex-derivatives/quotes_SOLF0:USTF0_20250820
["timestamp","ask_amount","ask_price","bid_price","bid_amount"]
[1755709122619,3.09,183.74,183.73,5.4425]
[1755709123116,3.09,183.74,183.72,5.4428]
[1755709123513,3.09,183.77,183.68,2.85]
[1755709123711,3.09,183.75,183.71,5.443]
[1755709123911,3.09,183.74,183.68,2.85]
[1755709125115,5.4418,183.76,183.72,5.4426]
[1755709125311,5.4415,183.77,183.68,2.85]
[1755709125617,8.5315,183.77,183.68,2.85]
[1755709125919,8.532,183.75,183.66,3.79733833]
[1755709126119,3.09,183.74,183.7,5.4432]
[1755709126311,3.09,183.73,183.66,3.79733833]
[1755709126713,5.442,183.75,183.66,3.79733833]
[1755709126918,3.09,183.74,183.66,3.79733833]
[1755709127308,3.09,183.74,183.72,5.4426]
[1755709127814,121.6099952,183.8,183.66,3.79733833]
[1755709127815,3.09,183.79,183.69,2.85]
[1755709128020,3.09,183.79,183.66,0.94733833]
[1755709128208,3.0038866,183.78,183.73,5.4425]
[1755709128408,3.09,183.75,183.73,5.4425]
[1755709128814,3.09,183.74,183.72,5.4427]
[1755709129023,3.09,183.77,183.67,2.85]
[1755709129721,3.09,183.73,183.7,5.4432]
[1755709129916,3.09,183.72,183.66,0.94733833]
[1755709130221,3.09,183.73,183.66,0.94733833]
[1755709130420,3.09,183.73,183.66,3.79733833]
[1755709131223,3.09,183.73,183.66,0.94733833]
[1755709131521,3.09,183.72,183.7,5.4434]
[1755709131721,3.09,183.76,183.67,2.85]
[1755709132022,3.09,183.76,183.71,5.4429]
[1755709132419,3.09,183.76,183.67,2.85]
[1755709132624,3.09,183.76,183.7,5.4432]
[1755709132824,3.09,183.76,183.67,2.85]
[1755709133126,3.09,183.76,183.7,5.4432]
[1755709133717,3.09,183.73,183.7,5.4432]
[1755709134326,8.5326,183.73,183.69,5.4437]
[1755709134524,3.09,183.72,183.69,5.4437]
[1755709135121,5.4429,183.72,183.68,5.4439]
[1755709135322,3.09,183.71,183.68,5.4439]
[1755709135919,3.09,183.71,183.69,5.4437]
[1755709136120,3.0038866,183.77,183.67,2.85]
[1755709136425,2.87,183.76,183.68,5.4438]
[1755709136725,5.4428,183.73,183.68,5.4438]
[1755709136924,2.87,183.72,183.68,5.4438]
[1755709137126,2.87,183.71,183.68,5.4438]
[1755709137823,2.87,183.7,183.68,5.4438]
[1755709138020,3.0038866,183.74,183.66,0.94733833]
[1755709138321,2.87,183.7,183.64,2.84]
[1755709138826,2.87,183.69,183.66,5.4444]
[1755709139526,8.3139,183.69,183.65,5.4449]
[1755709139826,8.3139,183.69,183.65,8.2849]
[1755709140027,8.3139,183.69,183.66,5.4446]
[1755709140226,2.87,183.69,183.66,5.4446]
[1755709141021,8.3138,183.69,183.66,5.4446]
[1755709141424,2.87,183.68,183.65,5.4448]
[1755709141928,2.87,183.68,183.66,5.4446]
[1755709142133,5.4441,183.68,183.62,0.94751889]
[1755709142330,2.87,183.69,183.62,0.94751889]
[1755709142629,3.0038866,183.71,183.62,3.78751889]
[1755709142823,3.0038866,183.71,183.63,2.84]
[1755709143229,3.0038866,183.71,183.66,5.4444]
[1755709143529,2.87,183.69,183.66,8.2844]
[1755709145830,2.87,183.7,183.63,2.84]
[1755709146430,3.0038866,183.71,183.65,5.4447]
[1755709146633,2.87,183.69,183.65,5.4447]
[1755709146831,2.87,183.73,183.63,2.84]
[1755709147032,5.8738866,183.73,183.63,2.84]
[1755709147427,2.87,183.69,183.62,0.94751889]
[1755709148131,2.87,183.69,183.63,5.4454]
[1755709149134,2.87,183.69,183.64,5.4451]
[1755709149338,2.87,183.68,183.62,0.94751889]
[1755709149541,2.87,183.72,183.63,2.84]
[1755709149835,2.87,183.72,183.65,5.4447]
[1755709150137,2.87,183.72,183.63,2.84]
[1755709150337,2.87,183.72,183.66,5.4446]
[1755709150539,2.87,183.72,183.63,2.84]
[1755709151440,8.3138,183.69,183.65,8.2847]
[1755709151735,2.87,183.69,183.66,2.84]
[1755709152036,2.87,183.69,183.66,8.2844]
[1755709152439,2.87,183.69,183.66,2.84]
[1755709153237,2.87,183.69,183.66,8.2844]
[1755709153838,8.3138,183.69,183.66,2.84]
[1755709154232,5.8738866,183.73,183.67,2.84]
[1755709154438,8.3134,183.71,183.67,2.84]
[1755709155036,5.4435,183.7,183.67,2.84]
[1755709156132,2.87,183.71,183.67,2.84]
[1755709156535,2.87,183.7,183.67,2.84]
[1755709157340,8.3136,183.7,183.67,2.84]
[1755709157538,2.87,183.7,183.67,2.84]
[1755709157737,2.87,183.72,183.68,2.84]
[1755709158039,3.0038866,183.73,183.68,2.84]
[1755709158238,2.87,183.71,183.68,2.84]
[1755709158733,2.87,183.71,183.68,8.284]
[1755709158935,2.87,183.71,183.68,2.84]
[1755709159636,2.87,183.7,183.64,2.84]
[1755709160441,2.87,183.7,183.66,5.4444]
[1755709160442,8.3136,183.7,183.66,5.4444]
[1755709160639,8.3136,183.7,183.66,8.2844]
[1755709161135,8.3136,183.7,183.67,2.84]
[1755709162941,2.87,183.68,183.65,8.2848]
[1755709163947,3.0038866,183.73,183.67,2.84]
[1755709163948,5.8738866,183.73,183.67,2.84]
[1755709164242,5.4433,183.71,183.67,8.2842]
[1755709164440,2.87,183.7,183.67,8.2842]
[1755709164837,2.87,183.69,183.65,8.2848]
[1755709165245,2.87,183.69,183.66,2.84]
[1755709165440,2.87,183.69,183.66,8.2846]
[1755709165640,2.94,183.72,183.63,2.86]
[1755709165843,2.94,183.72,183.68,5.4438]
[1755709166043,2.94,183.71,183.68,8.3038]
[1755709166640,2.94,183.75,183.69,2.86]
[1755709166843,5.4424,183.74,183.69,2.86]
[1755709167038,8.3824,183.74,183.7,2.86]
[1755709167238,2.94,183.73,183.7,2.86]
[1755709167745,2.94,183.73,183.7,8.3032]
[1755709168243,2.94,183.73,183.7,2.86]
[1755709168544,2.94,183.73,183.7,8.3033]
[1755709168737,2.94,183.73,183.7,2.86]
[1755709168940,8.3821,183.75,183.71,2.86]
[1755709169133,2.94,183.74,183.71,8.303]
[1755709169544,5.4421,183.75,183.72,2.86]
[1755709169743,8.3821,183.75,183.72,2.86]
[1755709169936,8.3821,183.75,183.71,5.443]
[1755709170142,2.94,183.75,183.72,5.4428]
[1755709170343,2.94,183.75,183.72,8.3028]
[1755709171947,2.94,183.77,183.67,2.86]
[1755709172350,5.4425,183.74,183.7,5.4432]
[1755709172548,2.94,183.77,183.71,2.86]
[1755709172944,5.4421,183.75,183.71,8.3029]
[1755709173140,8.3821,183.75,183.72,0.03497434]
[1755709173450,2.94,183.74,183.72,0.03497434]
[1755709174345,2.94,183.74,183.72,5.47777434]
[1755709175546,135.8,183.78,183.73,5.4425]
[1755709175743,2.94,183.77,183.73,2.86]
[1755709175944,2.94,183.77,183.72,0.03497434]
[1755709176153,2.94,183.77,183.73,2.86]
[1755709176442,5.4414,183.77,183.73,8.3024]
[1755709176646,2.94,183.76,183.73,8.3024]
[1755709176846,2.94,183.75,183.72,5.47767434]
[1755709177750,2.94,183.74,183.72,0.03497434]
[1755709177950,2.94,183.77,183.72,0.03497434]
[1755709178152,5.442,183.75,183.72,0.03497434]
[1755709178353,2.94,183.74,183.72,0.03497434]
[1755709179151,2.94,183.77,183.73,2.86]
[1755709179356,135.8,183.78,183.73,2.86]
[1755709179553,5.4417,183.76,183.72,5.47767434]
[1755709179745,2.94,183.74,183.72,5.47767434]
[1755709180445,2.94,183.74,183.72,0.03497434]
[1755709181051,2.94,183.77,183.72,0.03497434]
[1755709181251,2.94,183.76,183.72,0.03497434]
[1755709181450,2.94,183.75,183.72,2.89497434]
[1755709181651,2.94,183.75,183.72,8.33777434]
[1755709182343,135.74,183.78,183.73,2.86]
[1755709182652,121.6099952,183.8,183.73,2.86]
[1755709183045,124.5499952,183.8,183.73,2.86]
[1755709184145,129.9905952,183.8,183.77,5.4411]
[1755709184451,129.9905952,183.8,183.77,8.3011]
[1755709186351,129.9905952,183.8,183.77,2.86]
[1755709186548,124.5499952,183.8,183.78,5.441]
[1755709188356,124.5499952,183.8,183.77,2.86]
[1755709188558,121.6099952,183.8,183.72,2.86]
[1755709189452,2.94,183.83,183.74,3.0038866]
[1755709189652,138.62,183.83,183.75,2.86]
[1755709189852,138.62,183.83,183.81,5.4401]
[1755709191155,138.62,183.83,183.78,2.86]
[1755709191156,2.94,183.82,183.8,5.4404]
[1755709192655,2.94,183.82,183.81,5.4402]
[1755709192856,2.94,183.81,183.75,2.86]
[1755709193056,135.68,183.83,183.75,2.86]
[1755709193354,135.68,183.83,183.8,2.86]
[1755709193857,135.68,183.83,183.74,3.0038866]
[1755709194158,2.94,183.82,183.75,2.86]
[1755709194351,135.68,183.83,183.81,5.44]
[1755709194552,138.62,183.83,183.81,5.44]
[1755709194857,144.0596,183.83,183.8,5.4402]
[1755709195055,2.94,183.82,183.8,5.4402]
[1755709195252,2.94,183.82,183.79,2.86]
[1755709195755,2.94,183.82,183.8,5.4402]
[1755709196155,3.07,183.81,183.74,3.0038866]
[1755709196356,3.07,183.81,183.78,2.85]
[1755709196556,3.07,183.81,183.79,5.4406]
[1755709197361,138.75,183.83,183.79,2.85]
[1755709197549,3.07,183.82,183.79,2.85]
[1755709197859,3.07,183.82,183.8,5.4403]
[1755709198858,3.07,183.81,183.79,5.4407]
[1755709199856,5.44,183.82,183.79,5.4407]
[1755709200060,3.07,183.81,183.79,5.4407]
[1755709200265,3.07,183.81,183.75,2.85]
[1755709200657,3.0038866,183.81,183.72,2.85]
[1755709200962,135.62,183.82,183.67,3.0038866]
[1755709200963,3.07,183.79,183.67,3.0038866]
[1755709201168,3.07,183.77,183.68,2.85]
[1755709201357,3.07,183.74,183.72,5.4426]
[1755709201565,3.07,183.73,183.69,2.85]
[1755709202060,3.07,183.76,183.7,2.85]
[1755709202766,3.07,183.74,183.66,2.85]
[1755709202966,3.07,183.72,183.66,2.85]
[1755709203266,3.07,183.7,183.67,2.85]
[1755709203565,135.6,183.73,183.67,2.85]
[1755709204167,5.4432,183.71,183.68,5.444]
[1755709204467,8.5132,183.71,183.68,5.444]
[1755709204660,5.4432,183.71,183.68,5.444]
[1755709204865,8.5135,183.7,183.67,8.2943]
[1755709205464,8.5135,183.7,183.68,5.444]
[1755709205668,135.6,183.73,183.67,2.85]
[1755709205860,138.67,183.73,183.67,2.85]
[1755709206166,3.07,183.72,183.67,2.85]
[1755709206764,8.5129,183.72,183.69,5.4436]
[1755709207062,3.07,183.72,183.68,2.85]
[1755709207561,135.6,183.73,183.7,2.85]
[1755709207961,135.6,183.73,183.71,5.443]
[1755709208162,138.67,183.73,183.71,5.443]
[1755709208669,138.67,183.73,183.66,2.85]
[1755709209259,138.67,183.73,183.7,5.4435]
[1755709209462,3.07,183.73,183.7,5.4435]
[1755709209663,3.07,183.73,183.66,2.85]
[1755709209863,3.07,183.73,183.71,5.443]
[1755709210063,3.07,183.72,183.71,5.443]
[1755709210261,5.4421,183.75,183.64,2.85]
[1755709210262,3.07,183.75,183.64,2.85]
[1755709210461,5.4421,183.75,183.71,5.443]
[1755709210665,3.07,183.73,183.71,5.443]
[1755709210864,5.4421,183.75,183.71,5.443]
[1755709211368,3.07,183.73,183.71,5.443]
[1755709211566,3.07,183.8,183.71,2.85]
[1755709211766,138.67,183.8,183.71,2.85]
[1755709212159,5.4409,183.79,183.71,2.85]
[1755709212571,144.1106,183.8,183.76,5.4415]
[1755709212766,3.07,183.79,183.76,5.4415]
[1755709212968,3.07,183.79,183.71,2.85]
[1755709213169,5.4413,183.78,183.74,5.4421]
[1755709213573,3.07,183.76,183.72,2.85]
[1755709214362,3.07,183.76,183.75,5.442]
[1755709215168,3.07,183.78,183.76,5.4416]
[1755709215471,3.07,183.78,183.72,2.85]
[1755709215671,3.07,183.78,183.77,5.4414]
[1755709215971,3.07,183.82,183.75,5.8538866]
[1755709216162,3.07,183.82,183.79,5.4406]
[1755709216364,3.07,183.81,183.75,5.8538866]
[1755709216770,3.07,183.81,183.8,5.4405]
[1755709217483,135.6,183.84,183.75,2.85]
[1755709217677,3.07,183.83,183.73,2.85]
[1755709218180,3.07,183.83,183.77,5.4413]
[1755709219074,3.07,183.83,183.78,5.4411]
[1755709219275,135.6,183.84,183.78,5.4411]
[1755709219574,3.07,183.83,183.77,5.4414]
[1755709220970,6.0738866,183.83,183.73,2.85]
[1755709221175,3.0038866,183.8,183.73,2.85]
[1755709221371,3.0038866,183.8,183.73,5.4424]
[1755709221372,138.65,183.79,183.73,5.4424]
[1755709221777,3.07,183.78,183.73,5.4424]
[1755709221974,3.07,183.78,183.72,5.4428]
[1755709222181,3.07,183.78,183.7,2.85]
[1755709222577,3.07,183.81,183.7,2.85]
[1755709222778,135.56,183.8,183.7,5.8538866]
[1755709222976,135.56,183.8,183.71,2.85]
[1755709223177,135.56,183.8,183.74,5.4421]
[1755709223374,3.07,183.78,183.71,2.85]
[1755709223786,3.07,183.78,183.75,5.4419]
[1755709224682,365.68,183.85,183.74,2.85]
[1755709224984,135.56,183.83,183.74,2.85]
[1755709225377,135.56,183.83,183.78,5.4408]
[1755709225576,2.87,183.82,183.78,5.4408]
[1755709225878,135.56,183.83,183.78,5.4408]
[1755709226085,135.56,183.83,183.77,5.4413]
[1755709226086,2.87,183.81,183.77,5.4413]
[1755709226383,2.87,183.82,183.69,2.84]
[1755709227386,2.87,183.82,183.74,5.4422]
[1755709227772,2.87,183.82,183.73,5.4425]
[1755709227972,2.87,183.79,183.76,0.03686919]
[1755709228178,2.87,183.78,183.76,0.03686919]
[1755709228486,2.87,183.78,183.76,5.47856919]
[1755709228783,2.87,183.78,183.76,0.03686919]
[1755709229379,2.87,183.83,183.76,2.87686919]
[1755709230686,2.87,183.83,183.77,5.4412]
[1755709230876,5.8738866,183.83,183.76,0.03686919]
[1755709231078,2.87,183.82,183.76,0.03686919]
[1755709232779,3.0038866,183.8,183.76,0.03686919]
[1755709232984,138.41,183.79,183.76,0.03686919]
[1755709233190,2.87,183.78,183.76,0.03686919]
[1755709233384,5.8738866,183.77,183.7,2.84]
[1755709234091,5.8738866,183.77,183.66,2.84]
[1755709234092,2.87,183.76,183.66,2.84]
[1755709234589,2.87,183.76,183.68,5.4441]
[1755709234791,0.03645254,183.73,183.66,2.84]
[1755709235389,0.03645254,183.73,183.7,5.4432]
[1755709235583,0.03645254,183.73,183.7,8.2832]
[1755709235785,2.90645254,183.73,183.66,2.84]
[1755709236480,2.90645254,183.73,183.68,2.84]
[1755709237083,2.90645254,183.73,183.68,8.2839]
[1755709237393,2.87,183.72,183.68,2.84]
[1755709237889,2.87,183.72,183.63,2.84]
[1755709238590,0.03444725,183.69,183.65,5.4447]
[1755709238786,0.03444725,183.69,183.66,2.84]
[1755709239190,0.03444725,183.69,183.66,8.2847]
[1755709239788,0.03444725,183.69,183.62,3.95140549]
[1755709240094,0.03444725,183.69,183.65,3.0038866]
[1755709240488,0.03444725,183.69,183.68,2.84]
[1755709240787,0.03444725,183.69,183.68,8.2841]
[1755709245492,0.03444725,183.69,183.67,5.4443]
[1755709245792,0.03444725,183.69,183.67,2.84]
[1755709246488,2.90444725,183.69,183.63,2.84]
[1755709247892,2.90444725,183.69,183.6,2.84]
[1755709248393,2.90444725,183.69,183.63,5.4454]
[1755709248786,5.90833385,183.69,183.59,0.94767371]
[1755709248992,2.90444725,183.69,183.6,2.84]
[1755709250993,2.87,183.68,183.6,2.84]
[1755709251588,2.87,183.68,183.63,5.4454]
[1755709251894,2.87,183.68,183.6,2.84]
[1755709252096,2.87,183.68,183.64,5.445]
[1755709252394,2.87,183.67,183.64,5.445]
[1755709252793,2.87,183.67,183.63,5.4453]
[1755709253192,0.03444725,183.69,183.63,5.4453]
[1755709253398,2.87,183.66,183.63,5.4453]
[1755709253596,2.87,183.66,183.64,5.4452]
[1755709253992,2.87,183.68,183.59,0.94767371]
[1755709254194,2.87,183.72,183.62,2.84]
[1755709254399,0.03812463,183.67,183.61,3.0038866]
[1755709254598,0.03812463,183.67,183.63,2.84]
[1755709254798,0.03812463,183.67,183.66,5.4447]
[1755709254989,0.03812463,183.67,183.66,8.2847]
[1755709261003,0.03812463,183.67,183.66,5.4447]
[1755709262201,0.03812463,183.67,183.6,62.0]
[1755709262506,0.03812463,183.67,183.6,2.95]
[1755709262709,0.03812463,183.67,183.62,2.95]
[1755709263008,0.03812463,183.67,183.64,2.95]
[1755709263202,0.03812463,183.67,183.66,5.4447]
[1755709263403,0.03812463,183.67,183.66,8.3947]
[1755709264603,3.0,183.76,183.72,5.4428]
[1755709264796,3.0,183.75,183.72,5.4428]
[1755709265603,5.4414,183.77,183.69,2.95]
[1755709265811,3.0,183.78,183.7,3.0038866]
[1755709265998,371.7474106,183.85,183.7,3.0038866]
[1755709265999,3.0,183.82,183.71,2.95]
[1755709266204,3.0,183.83,183.74,2.95]
[1755709267308,118.71696832,183.86,183.77,2.95]
[1755709267497,118.71696832,183.86,183.8,2.95]
[1755709267701,118.71696832,183.86,183.85,5.439]
[1755709268003,118.71696832,183.86,183.8,2.95]
[1755709268407,3.0,183.91,183.83,2.95]
[1755709269000,3.0,183.91,183.88,5.4381]
[1755709270508,3.0,183.97,183.85,5.01824392]
[1755709270707,3.0,183.97,183.86,2.95]
[1755709270906,140.53824392,184.04,183.95,5.4358]
[1755709270907,135.52,184.04,183.95,5.4358]
[1755709271102,3.0,184.01,183.95,5.4358]
[1755709271302,3.0,184.01,183.91,2.95]
[1755709272107,3.0,184.01,183.93,5.4366]
[1755709272310,3.0,184.01,183.91,2.95]
[1755709272700,3.0,184.03,183.96,5.4356]
[1755709272903,3.0,184.03,183.91,2.95]
[1755709273703,3.0,184.03,183.99,5.4348]
[1755709273905,3.0,184.02,183.95,2.95]
[1755709274309,3.0,184.02,183.99,5.4349]
[1755709274914,3.0,184.06,183.99,5.4349]
[1755709275107,3.0,184.06,183.97,5.4352]
[1755709275307,3.0,184.06,183.95,2.95]
[1755709276703,3.0,184.06,184.03,5.4337]
[1755709279510,3.0,184.06,184.04,5.4333]
[1755709279814,192.94714932,184.09,184.04,5.4333]
[1755709280016,3.0,184.08,183.99,2.95]
[1755709280315,189.94714932,184.09,183.98,2.95]
[1755709280815,189.94714932,184.09,184.07,5.4325]
[1755709281714,189.94714932,184.09,184.08,5.4322]
[1755709281909,189.94714932,184.09,184.01,5.01824392]
[1755709282115,189.94714932,184.09,184.06,2.95]
[1755709282312,189.94714932,184.09,184.08,5.4322]
[1755709282512,189.94714932,184.09,184.06,2.95]
[1755709282713,189.94714932,184.09,184.02,2.95]
[1755709282918,189.94714932,184.09,184.06,5.4326]
[1755709283119,189.94714932,184.09,184.02,2.95]
[1755709283620,3.0,184.1,184.06,5.4326]
[1755709283811,3.0,184.09,184.02,2.95]
[1755709284015,3.0,184.12,184.02,2.95]
[1755709284214,135.42,184.14,184.02,2.95]
[1755709284616,135.42,184.14,184.09,5.4317]
[1755709284918,138.42,184.14,184.02,2.95]
[1755709285719,138.42,184.14,184.05,5.01824392]
[1755709285915,138.42,184.14,184.06,2.94]
[1755709286618,138.42,184.14,184.11,5.4311]
[1755709286818,3.0,184.14,184.11,5.4311]
[1755709287220,3.0,184.14,184.12,5.431]
[1755709287920,2.84,184.13,184.11,5.4312]
[1755709288428,2.84,184.16,184.06,2.94]
[1755709288817,2.84,184.16,184.12,5.431]
[1755709289022,2.84,184.14,184.12,5.431]
[1755709289724,2.84,184.14,184.13,5.4308]
[1755709290121,2.84,184.14,184.11,5.4311]
[1755709290322,2.84,184.14,184.08,2.94]
[1755709290713,2.84,184.14,184.12,5.431]
[1755709291318,2.84,184.13,184.12,5.431]
[1755709291518,2.84,184.13,184.08,2.94]
[1755709291717,135.3,184.19,184.07,3.00361972]
[1755709291718,2.84,184.18,184.07,3.00361972]
[1755709291920,3.00361972,184.17,184.05,2.94]
[1755709292120,2.84,184.16,184.08,5.4322]
[1755709292423,2.84,184.16,184.05,2.94]
[1755709294019,2.84,184.16,184.07,5.4323]
[1755709294419,2.84,184.16,184.08,5.4322]
[1755709294613,2.84,184.16,184.07,3.00361972]
[1755709294819,2.84,184.16,184.08,2.94]
[1755709295019,2.84,184.16,184.14,5.4305]
[1755709295214,135.3,184.19,184.14,5.4305]
[1755709295419,2.84,184.15,184.08,2.94]
[1755709295823,2.84,184.18,184.08,2.94]
[1755709296221,135.3,184.19,184.14,5.4302]
[1755709296415,2.84,184.17,184.1,2.94]
[1755709296626,2.84,184.17,184.15,5.43]
[1755709296822,2.84,184.17,184.1,5.94361972]
[1755709297120,2.84,184.17,184.11,5.4313]
[1755709297318,2.84,184.17,184.06,5.94361972]
[1755709297916,2.84,184.17,184.06,2.94]
[1755709298430,2.84,184.17,184.08,5.432]
[1755709298629,2.84,184.17,184.06,2.94]
[1755709298925,3.00361972,184.16,184.06,2.94]
[1755709299123,2.84,184.15,184.06,2.94]
[1755709299524,2.84,184.15,184.08,5.4321]
[1755709299725,2.84,184.15,184.06,2.94]
[1755709300028,2.84,184.15,184.07,5.4324]
[1755709300722,2.84,184.15,184.01,2.94]
[1755709300918,5.00836019,184.15,184.01,2.94]
[1755709301119,2.84,184.14,184.01,2.94]
[1755709301325,2.84,184.14,184.05,5.4329]
[1755709301530,2.84,184.14,184.01,2.94]
[1755709301830,2.84,184.14,183.97,10.8705]
[1755709301831,2.84,184.14,183.97,2.94]
[1755709302024,2.84,184.1,183.97,2.94]
[1755709302227,2.84,184.09,184.0,5.4344]
[1755709302426,2.84,184.09,183.97,2.94]
[1755709303227,2.84,184.09,183.96,5.00836019]
[1755709303528,2.84,184.09,183.97,2.94]
[1755709303929,2.84,184.09,184.01,2.94]
[1755709304526,135.18,184.1,184.01,2.94]
[1755709304825,2.84,184.12,184.01,2.94]
[1755709305029,2.84,184.11,184.08,5.4322]
[1755709305227,2.84,184.11,184.04,2.94]
[1755709305625,2.84,184.15,184.06,5.4328]
[1755709305834,2.84,184.15,184.04,2.94]
[1755709306131,2.84,184.15,184.01,2.94]
[1755709307124,5.00836019,184.14,183.97,2.94]
[1755709307334,2.84,184.13,183.97,2.94]
[1755709308226,2.84,184.13,183.98,5.00836019]
[1755709308431,2.84,184.13,184.01,2.94]
[1755709309731,2.84,184.13,184.07,5.4325]
[1755709310129,2.84,184.13,184.01,2.94]
[1755709310632,2.84,184.12,184.08,5.432]
[1755709310829,2.84,184.12,184.04,2.94]
[1755709311125,2.84,184.12,184.06,5.4327]
[1755709311431,2.84,184.12,184.04,2.94]
[1755709311633,2.84,184.12,184.04,8.3732]
[1755709312534,2.45728395,184.11,184.03,5.4336]
[1755709312734,2.84,184.1,184.03,5.4336]
[1755709313229,2.84,184.1,183.99,2.94]
[1755709313430,0.03904995,184.08,183.99,2.94]
[1755709313630,2.84,184.07,184.0,5.4345]
[1755709313822,2.84,184.07,184.03,0.03825849]
[1755709314021,0.03904995,184.08,184.03,0.03825849]
[1755709314328,2.45933724,184.1,183.95,2.94]
[1755709314531,2.84,184.07,183.95,2.94]
[1755709314730,2.84,184.07,183.94,5.00836019]
[1755709314921,2.84,184.07,183.96,2.94]
[1755709315433,5.00836019,184.12,184.02,5.4338]
[1755709315633,2.84,184.05,184.02,5.4338]
[1755709315828,2.8,184.09,184.02,2.85]
[1755709316025,2.8,184.09,184.03,5.4337]
[1755709317629,2.8,184.11,184.02,2.85]
[1755709317830,2.8,184.11,183.94,5.00836019]
[1755709318029,2.8,184.11,183.99,2.85]
[1755709318229,2.8,184.11,184.02,5.4338]
[1755709318534,2.8,184.11,183.99,2.85]
[1755709318929,2.8,184.11,184.03,5.4335]
[1755709319531,2.8,184.11,184.02,5.4339]
[1755709320133,138.0,184.11,184.01,5.4342]
[1755709320329,2.8,184.1,183.99,2.85]
[1755709320728,2.8,184.09,183.99,8.2847]
[1755709321734,135.2,184.11,183.99,2.85]
[1755709322331,2.8,184.1,183.99,2.85]
[1755709322938,2.8,184.1,184.04,5.4334]
[1755709324236,2.8,184.1,184.03,5.4336]
[1755709324433,2.8,184.1,184.02,2.85]
[1755709324740,2.8,184.1,183.94,21.96924107]
[1755709324741,2.8,184.1,183.95,2.85]
[1755709325341,2.8,184.1,184.01,5.4341]
[1755709325545,2.8,184.1,183.99,2.85]
[1755709325936,2.8,184.1,184.02,5.4339]
[1755709326132,2.8,184.1,183.99,2.85]
[1755709326439,2.8,184.1,184.03,5.4335]
[1755709326941,367.88,184.13,184.03,2.85]
[1755709327539,367.88,184.13,184.06,5.4326]
[1755709327937,2.8,184.13,184.06,5.4326]
[1755709328239,2.8,184.13,184.01,2.85]
[1755709328641,2.8,184.13,184.09,5.4317]
[1755709328939,135.2,184.14,184.01,10.8686]
[1755709329140,135.2,184.14,184.12,5.431]
[1755709329440,135.2,184.14,184.07,2.85]
[1755709329941,2.8,184.13,184.01,2.85]
[1755709330334,2.8,184.12,184.08,5.4322]
[1755709330535,2.8,184.12,184.01,2.85]
[1755709330736,2.8,184.12,184.07,5.4323]
[1755709330935,2.8,184.12,184.07,8.2823]
[1755709331144,135.2,184.14,184.0,11.09664107]